fUSD/lending_fUSD_20241219
["ID","MTS","AMOUNT","RATE_DAILY","PERIOD"]
[346010667,1734623434419,-500.0,0.00022191,4]
[346010668,1734623434430,-500.0,0.00022191,4]
[346010669,1734623434440,-500.0,0.00022191,4]
[346010670,1734623434450,-500.0,0.00022191,4]
[346010671,1734623434460,-500.0,0.00022191,4]
[346010672,1734623434470,-500.0,0.00022191,4]
[346010673,1734623434485,-500.0,0.00022191,4]
[346010674,1734623434495,-500.0,0.00022191,4]
[346010675,1734623434505,-500.0,0.00022191,4]
[346010676,1734623434515,-500.0,0.00022191,4]
[346010677,1734623434524,-500.0,0.00022191,4]
[346010678,1734623434533,-490.24,0.00022197,2]
[346010679,1734623434545,-494.64,0.00022197,2]
[346010680,1734623434556,-500.69,0.00022197,2]
[346010681,1734623434566,-490.14,0.00022197,2]
[346010682,1734623434576,-151.12,0.00022203,2]
[346010683,1734623434586,-151.12,0.00022225,2]
[346010684,1734623434595,-151.12,0.00022247,2]
[346010685,1734623434605,-941.0,0.00022264,2]
[346010686,1734623434616,-151.12,0.00022269,2]
[346010687,1734623434626,-151.0,0.00022302,2]
[346010688,1734623434636,-76891.2216,0.00022365,2]
[346010689,1734623434649,-500.0,0.00022465,4]
[346010690,1734623434660,-500.0,0.00022465,4]
[346010691,1734623434670,-500.0,0.00022465,4]
[346010692,1734623434680,-500.0,0.00022465,4]
[346010693,1734623434690,-500.0,0.00022465,4]
[346010694,1734623434699,-500.0,0.00022465,4]
[346010695,1734623434708,-500.0,0.00022465,4]
[346010696,1734623434718,-500.0,0.00022465,4]
[346010697,1734623434728,-500.0,0.00022465,4]
[346010698,1734623434738,-500.0,0.00022465,4]
[346010699,1734623434747,-500.0,0.00022465,4]
[346010700,1734623434758,-633.74467135,0.00022465,4]
[346010701,1734623434767,-500.0,0.00022465,4]
[346010702,1734623434778,-500.0,0.00022465,4]
[346010703,1734623434789,-635.96,0.00022465,4]
[346010704,1734623434799,-500.0,0.00022465,4]
[346010706,1734623434810,-500.0,0.00022465,4]
[346010707,1734623434819,-500.0,0.00022465,4]
[346010708,1734623434829,-522.98,0.00022465,4]
[346010709,1734623434839,-500.0,0.00022465,4]
[346010710,1734623434849,-500.0,0.00022465,4]
[346010711,1734623434859,-500.0,0.00022465,4]
[346010712,1734623434869,-593.22,0.00022465,4]
[346010713,1734623435058,-500.0,0.00022465,4]
[346010714,1734623435069,-500.0,0.00022465,4]
[346010715,1734623435079,-754.73,0.00022465,4]
[346010716,1734623435089,-500.0,0.00022465,4]
[346010717,1734623435099,-500.0,0.00022465,4]
[346010718,1734623435109,-500.0,0.00022465,4]
[346010719,1734623435119,-783.85,0.00022465,4]
[346010720,1734623435128,-5000.0,0.00022465,4]
[346010721,1734623435138,-843.2,0.00022465,4]
[346010722,1734623435152,-998.34,0.00022465,4]
[346010723,1734623435162,-500.0,0.00022465,4]
[346010724,1734623435171,-1465.39,0.00022465,4]
[346010725,1734623435180,-377.90040243,0.00022465,4]
[346010726,1734623435190,-676.41,0.00022465,4]
[346010727,1734623435200,-500.0,0.00022465,4]
[346010728,1734623435209,-500.0,0.00022465,4]
[346010729,1734623435219,-506.74,0.00022465,4]
[346010730,1734623435228,-500.0,0.00022465,4]
[346010731,1734623435238,-1117.63,0.00022465,4]
[346010732,1734623435247,-1309.44,0.00022465,4]
[346010733,1734623435256,-500.0,0.00022465,4]
[346010734,1734623435266,-1745.38,0.00022465,4]
[346010735,1734623435276,-500.0,0.00022465,4]
[346010736,1734623435285,-500.0,0.00022465,4]
[346010737,1734623435294,-500.0,0.00022465,4]
[346010738,1734623435303,-500.0,0.00022465,4]
[346010739,1734623435313,-500.0,0.00022465,4]
[346010740,1734623435322,-500.0,0.00022465,4]
[346010741,1734623435331,-500.0,0.00022465,4]
[346010742,1734623435341,-500.0,0.00022465,4]
[346010743,1734623435351,-500.0,0.00022465,4]
[346010744,1734623435360,-500.0,0.00022465,4]
[346010745,1734623435370,-500.0,0.00022465,4]
[346010746,1734623435380,-500.0,0.00022465,4]
[346010747,1734623435393,-250.0,0.00022628,2]
[346010748,1734623435403,-5000.0,0.00022638,2]
[346010749,1734623435412,-500.0,0.00022736,4]
[346010750,1734623435421,-500.0,0.00022736,4]
[346010751,1734623435431,-500.0,0.00022736,4]
[346010752,1734623435440,-500.0,0.00022736,4]
[346010753,1734623435449,-294.16,0.00022736,4]
[346010754,1734623435459,-500.0,0.00022736,4]
[346010755,1734623435469,-895.5,0.00022736,4]
[346010756,1734623435479,-500.0,0.00022736,4]
[346010757,1734623435489,-500.0,0.00022736,4]
[346010758,1734623435498,-500.0,0.00022737,4]
[346010759,1734623435508,-500.0,0.00022737,4]
[346010760,1734623435518,-500.0,0.00022737,4]
[346010761,1734623435527,-500.0,0.00022737,4]
[346010762,1734623435537,-500.0,0.00022737,4]
[346010763,1734623435550,-500.0,0.00022737,4]
[346010764,1734623435560,-500.0,0.00022737,4]
[346010765,1734623435570,-500.0,0.00022737,4]
[346010766,1734623435580,-500.0,0.00022737,4]
[346010767,1734623435590,-500.0,0.00022737,4]
[346010768,1734623435600,-500.0,0.00022737,4]
[346010769,1734623435609,-500.0,0.00022737,4]
[346010770,1734623435618,-290.19299994,0.00022737,4]
[346010771,1734623435628,-500.0,0.00022737,4]
[346010772,1734623435639,-500.0,0.00022737,4]
[346010773,1734623435651,-500.0,0.00022737,4]
[346010774,1734623435660,-500.0,0.00022737,4]
[346010775,1734623435670,-500.0,0.00022737,4]
[346010776,1734623435679,-500.0,0.00022737,4]
[346010777,1734623435690,-500.0,0.00022737,4]
[346010778,1734623435699,-500.0,0.00022737,4]
[346010779,1734623435709,-500.0,0.00022737,4]
[346010780,1734623435719,-500.0,0.00022737,4]
[346010781,1734623435728,-500.0,0.00022737,4]
[346010782,1734623435738,-500.0,0.00022737,4]
[346010783,1734623435747,-500.0,0.00022737,4]
[346010784,1734623435757,-824.3,0.00022737,4]
[346010785,1734623435766,-746.95,0.00022737,4]
[346010786,1734623435776,-500.0,0.00022737,4]
[346010787,1734623435785,-500.0,0.00022737,4]
[346010788,1734623435795,-500.0,0.00022737,4]
[346010789,1734623435804,-307.09119025,0.00022737,4]
[346010790,1734623435813,-500.0,0.00022737,4]
[346010791,1734623435823,-500.0,0.00022737,4]
[346010792,1734623435833,-500.0,0.00022737,4]
[346010793,1734623435843,-500.0,0.00022737,4]
[346010794,1734623435852,-500.0,0.00022737,4]
[346010795,1734623435861,-618.46,0.00022737,4]
[346010796,1734623435871,-500.0,0.00022737,4]
[346010797,1734623435881,-521.38,0.00022737,4]
[346010798,1734623435893,-500.0,0.00022737,4]
[346010799,1734623435903,-500.0,0.00022737,4]
[346010800,1734623435913,-1093.24,0.00022737,4]
[346010801,1734623435922,-500.0,0.00022737,4]
[346010802,1734623435932,-500.0,0.00022737,4]
[346010803,1734623435941,-500.0,0.00022737,4]
[346010804,1734623435950,-500.0,0.00022737,4]
[346010805,1734623435960,-500.0,0.00022737,4]
[346010806,1734623435969,-500.0,0.00022737,4]
[346010807,1734623435979,-1000.0,0.00022737,4]
[346010808,1734623435989,-500.0,0.00022737,4]
[346010809,1734623435998,-500.0,0.00022737,4]
[346010810,1734623436008,-717.63,0.00022737,4]
[346010811,1734623436017,-500.0,0.00022737,4]
[346010812,1734623436027,-1811.14,0.00022737,4]
[346010813,1734623436036,-500.0,0.00022737,4]
[346010814,1734623436046,-2017.18,0.00022737,4]
[346010815,1734623436055,-500.0,0.00022737,4]
[346010816,1734623436065,-500.0,0.00022737,4]
[346010817,1734623436075,-500.0,0.00022737,4]
[346010818,1734623436084,-500.0,0.00022737,4]
[346010819,1734623436095,-500.0,0.00022738,4]
[346010820,1734623436105,-673.428,0.00022738,2]
[346010821,1734623436116,-535.0,0.00022738,2]
[346010822,1734623436125,-3633.0,0.00022738,2]
[346010823,1734623436135,-150.244,0.00022738,2]
[346010824,1734623436148,-3882.0,0.00022738,2]
[346010825,1734623436157,-276.367,0.00022738,2]
[346010826,1734623436167,-150.0,0.00022738,2]
[346010827,1734623436176,-460.0768978,0.00022739,4]
[346010828,1734623436186,-500.0,0.00022739,4]
[346010829,1734623436195,-577.8604374,0.00022739,4]
[346010830,1734623436204,-500.0,0.00022739,4]
[346010831,1734623436214,-500.0,0.00022739,4]
[346010832,1734623436223,-500.0,0.00022739,4]
[346010833,1734623436232,-296.4035143,0.00022739,4]
[346010834,1734623436242,-448.39292239,0.00022739,4]
[346010835,1734623436252,-500.0,0.00022739,4]
[346010836,1734623436262,-500.0,0.00022739,4]
[346010837,1734623436480,-500.0,0.00022739,4]
[346010838,1734623436491,-211.11406158,0.00022739,4]
[346010839,1734623436501,-635.96,0.00022739,4]
[346010840,1734623436511,-500.0,0.00022739,4]
[346010841,1734623436521,-500.0,0.00022739,4]
[346010842,1734623436530,-392.38674322,0.00022739,4]
[346010843,1734623436540,-500.0,0.00022739,4]
[346010844,1734623436550,-522.98,0.00022739,4]
[346010845,1734623436563,-500.0,0.00022739,4]
[346010846,1734623436573,-500.0,0.00022739,4]
[346010847,1734623436583,-593.22,0.00022739,4]
[346010848,1734623436593,-416.78369554,0.00022739,4]
[346010849,1734623436603,-754.73,0.00022739,4]
[346010850,1734623436613,-500.0,0.00022739,4]
[346010851,1734623436623,-500.0,0.00022739,4]
[346010852,1734623436634,-507.47689465,0.00022739,4]
[346010853,1734623436648,-783.85,0.00022739,4]
[346010854,1734623436658,-3995.92115829,0.00022739,4]
[346010855,1734623436667,-843.2,0.00022739,4]
[346010856,1734623436677,-998.34,0.00022739,4]
[346010857,1734623436686,-500.0,0.00022739,4]
[346010858,1734623436696,-1465.39,0.00022739,4]
[346010859,1734623436707,-676.41,0.00022739,4]
[346010860,1734623436716,-500.0,0.00022739,4]
[346010861,1734623436725,-500.0,0.00022739,4]
[346010862,1734623436735,-506.74,0.00022739,4]
[346010863,1734623436745,-633.57361185,0.00022739,4]
[346010864,1734623436755,-1117.63,0.00022739,4]
[346010865,1734623436764,-1309.44,0.00022739,4]
[346010866,1734623436774,-500.0,0.00022739,4]
[346010867,1734623436784,-1745.38,0.00022739,4]
[346010868,1734623436792,-617.85324319,0.00022739,4]
[346010869,1734623436802,-500.0,0.00022739,4]
[346010870,1734623436812,-500.0,0.00022739,4]
[346010871,1734623436822,-500.0,0.00022739,4]
[346010872,1734623436831,-500.0,0.00022739,4]
[346010873,1734623436840,-500.0,0.00022739,4]
[346010874,1734623436850,-500.0,0.00022739,4]
[346010875,1734623436859,-500.0,0.00022739,4]
[346010876,1734623436868,-500.0,0.00022739,4]
[346010877,1734623436878,-500.0,0.00022739,4]
[346010878,1734623436887,-500.0,0.00022739,4]
[346010879,1734623436901,-935.6,0.000229,2]
[346010880,1734623436911,-500.0,0.00022918,2]
[346010881,1734623436921,-500.0,0.0002301,4]
[346010882,1734623436930,-305.64,0.0002301,4]
[346010883,1734623436941,-500.0,0.0002301,4]
[346010884,1734623436951,-406.17774291,0.0002301,4]
[346010885,1734623436961,-500.0,0.0002301,4]
[346010886,1734623436970,-895.5,0.0002301,4]
[346010887,1734623436980,-500.0,0.0002301,4]
[346010888,1734623436990,-500.0,0.0002301,4]
[346010889,1734623436999,-500.0,0.00023011,4]
[346010890,1734623437009,-500.0,0.00023011,4]
[346010891,1734623437018,-500.0,0.00023011,4]
[346010892,1734623437028,-500.0,0.00023011,4]
[346010893,1734623437037,-500.0,0.00023011,4]
[346010894,1734623437047,-500.0,0.00023011,4]
[346010895,1734623437056,-500.0,0.00023011,4]
[346010896,1734623437066,-500.0,0.00023011,4]
[346010897,1734623437075,-16405.6371,0.00023011,2]
[346010898,1734623437084,-500.0,0.00023011,4]
[346010899,1734623437094,-591.41392167,0.00023011,4]
[346010900,1734623437103,-500.0,0.00023011,4]
[346010901,1734623437112,-500.0,0.00023011,4]
[346010902,1734623437122,-500.0,0.00023011,4]
[346010903,1734623437132,-500.0,0.00023011,4]
[346010904,1734623437143,-500.0,0.00023011,4]
[346010905,1734623437152,-500.0,0.00023011,4]
[346010906,1734623437161,-500.0,0.00023011,4]
[346010907,1734623437170,-500.0,0.00023011,4]
[346010908,1734623437179,-500.0,0.00023011,4]
[346010909,1734623437188,-643.66,0.00023011,4]
[346010910,1734623437198,-500.0,0.00023011,4]
[346010911,1734623437207,-500.0,0.00023011,4]
[346010912,1734623437217,-500.0,0.00023011,4]
[346010913,1734623437226,-824.3,0.00023011,4]
[346010914,1734623437236,-500.0,0.00023011,4]
[346010915,1734623437245,-500.0,0.00023011,4]
[346010916,1734623437255,-500.0,0.00023011,4]
[346010917,1734623437264,-500.0,0.00023011,4]
[346010918,1734623437274,-500.0,0.00023011,4]
[346010919,1734623437283,-500.0,0.00023011,4]
[346010920,1734623437293,-500.0,0.00023011,4]
[346010921,1734623437302,-500.0,0.00023011,4]
[346010922,1734623437312,-618.46,0.00023011,4]
[346010923,1734623437322,-500.0,0.00023011,4]
[346010924,1734623437331,-521.38,0.00023011,4]
[346010925,1734623437341,-500.0,0.00023011,4]
[346010926,1734623437351,-1093.24,0.00023011,4]
[346010927,1734623437361,-500.0,0.00023011,4]
[346010928,1734623437371,-500.0,0.00023011,4]
[346010929,1734623437380,-500.0,0.00023011,4]
[346010930,1734623437389,-500.0,0.00023011,4]
[346010931,1734623437400,-500.0,0.00023011,4]
[346010932,1734623437410,-500.0,0.00023011,4]
[346010933,1734623437419,-500.0,0.00023011,4]
[346010934,1734623437429,-500.0,0.00023011,4]
[346010935,1734623437439,-717.63,0.00023011,4]
[346010936,1734623437448,-500.0,0.00023011,4]
[346010937,1734623437458,-1811.14,0.00023011,4]
[346010938,1734623437467,-500.0,0.00023011,4]
[346010939,1734623437477,-2017.18,0.00023011,4]
[346010940,1734623437486,-500.0,0.00023011,4]
[346010941,1734623437496,-500.0,0.00023011,4]
[346010942,1734623437505,-586.81552411,0.00023011,4]
[346010943,1734623437514,-500.0,0.00023011,4]
[346010944,1734623437524,-500.0,0.00023012,4]
[346010945,1734623437534,-500.0,0.00023013,4]
[346010946,1734623437547,-500.0,0.00023013,4]
[346010947,1734623437556,-500.0,0.00023013,4]
[346010948,1734623437566,-500.0,0.00023013,4]
[346010949,1734623437575,-500.0,0.00023013,4]
[346010950,1734623437587,-500.0,0.00023013,4]
[346010951,1734623437597,-635.96,0.00023013,4]
[346010952,1734623437607,-500.0,0.00023013,4]
[346010953,1734623437616,-500.0,0.00023013,4]
[346010954,1734623437627,-500.0,0.00023013,4]
[346010955,1734623437636,-522.98,0.00023013,4]
[346010956,1734623437647,-500.0,0.00023013,4]
[346010957,1734623437657,-500.0,0.00023013,4]
[346010958,1734623437667,-593.22,0.00023013,4]
[346010959,1734623437677,-754.73,0.00023013,4]
[346010960,1734623437687,-500.0,0.00023013,4]
[346010961,1734623437697,-500.0,0.00023013,4]
[346010962,1734623437708,-783.85,0.00023013,4]
[346010963,1734623437717,-843.2,0.00023013,4]
[346010964,1734623437727,-998.34,0.00023013,4]
[346010965,1734623437737,-500.0,0.00023013,4]
[346010966,1734623437746,-1465.39,0.00023013,4]
[346010967,1734623437756,-676.41,0.00023013,4]
[346010968,1734623437766,-500.0,0.00023013,4]
[346010969,1734623437776,-500.0,0.00023013,4]
[346010970,1734623437785,-506.74,0.00023013,4]
[346010971,1734623437794,-1117.63,0.00023013,4]
[346010972,1734623437804,-1309.44,0.00023013,4]
[346010973,1734623437814,-500.0,0.00023013,4]
[346010974,1734623437823,-1745.38,0.00023013,4]
[346010975,1734623437833,-500.0,0.00023013,4]
[346010976,1734623437842,-500.0,0.00023013,4]
[346010977,1734623437851,-500.0,0.00023013,4]
[346010978,1734623437860,-500.0,0.00023013,4]
[346010979,1734623437869,-404.34395746,0.00023013,4]
[346010980,1734623437879,-500.0,0.00023013,4]
[346010981,1734623437889,-500.0,0.00023013,4]
[346010982,1734623437903,-500.0,0.00023013,4]
[346010983,1734623437913,-500.0,0.00023013,4]
[346010984,1734623437922,-500.0,0.00023013,4]
[346010985,1734623437932,-192.75,0.00023047,2]
[346010986,1734623437942,-495.45,0.00023153,2]
[346010987,1734623437951,-1744.25,0.00023153,2]
[346010988,1734623437961,-391.27731321,0.00023258,2]
[346010989,1734623437971,-500.0,0.00023284,4]
[346010990,1734623437980,-500.0,0.00023284,4]
[346010991,1734623437990,-500.0,0.00023284,4]
[346010992,1734623438000,-895.5,0.00023284,4]
[346010993,1734623438010,-500.0,0.00023284,4]
[346010994,1734623438019,-500.0,0.00023285,4]
[346010995,1734623438029,-500.0,0.00023285,4]
[346010996,1734623438038,-500.0,0.00023285,4]
[346010997,1734623438047,-500.0,0.00023285,4]
[346010998,1734623438057,-500.0,0.00023285,4]
[346010999,1734623438067,-500.0,0.00023285,4]
[346011000,1734623438077,-500.0,0.00023285,4]
[346011001,1734623438088,-500.0,0.00023285,4]
[346011002,1734623438100,-500.0,0.00023285,4]
[346011003,1734623438111,-160.7,0.00023285,4]
[346011004,1734623438123,-500.0,0.00023285,4]
[346011005,1734623438133,-500.0,0.00023285,4]
[346011006,1734623438144,-500.0,0.00023285,4]
[346011007,1734623438154,-500.0,0.00023285,4]
[346011008,1734623438164,-824.3,0.00023285,4]
[346011009,1734623438174,-500.0,0.00023285,4]
[346011010,1734623438185,-500.0,0.00023285,4]
[346011011,1734623438195,-500.0,0.00023285,4]
[346011012,1734623438205,-500.0,0.00023285,4]
[346011013,1734623438215,-500.0,0.00023285,4]
[346011014,1734623438226,-500.0,0.00023285,4]
[346011015,1734623438235,-500.0,0.00023285,4]
[346011016,1734623438245,-618.46,0.00023285,4]
[346011017,1734623438255,-521.38,0.00023285,4]
[346011018,1734623438265,-500.0,0.00023285,4]
[346011019,1734623438275,-1093.24,0.00023285,4]
[346011020,1734623438284,-500.0,0.00023285,4]
[346011021,1734623438295,-325.99292718,0.00023285,4]
[346011022,1734623438306,-500.0,0.00023285,4]
[346011023,1734623438316,-500.0,0.00023285,4]
[346011024,1734623438326,-500.0,0.00023285,4]
[346011025,1734623438336,-500.0,0.00023285,4]
[346011026,1734623438346,-500.0,0.00023285,4]
[346011028,1734623438356,-500.0,0.00023285,4]
[346011030,1734623438366,-717.63,0.00023285,4]
[346011031,1734623438377,-500.0,0.00023285,4]
[346011034,1734623438387,-1811.14,0.00023285,4]
[346011036,1734623438402,-2017.18,0.00023285,4]
[346011038,1734623438412,-500.0,0.00023285,4]
[346011040,1734623438422,-424.04517252,0.00023285,4]
[346011042,1734623438432,-500.0,0.00023285,4]
[346011043,1734623438442,-500.0,0.00023286,4]
[346011044,1734623438451,-500.0,0.00023287,4]
[346011045,1734623438461,-500.0,0.00023287,4]
[346011046,1734623438472,-500.0,0.00023287,4]
[346011047,1734623438482,-500.0,0.00023287,4]
[346011048,1734623438493,-500.0,0.00023287,4]
[346011049,1734623438502,-500.0,0.00023287,4]
[346011050,1734623438512,-635.96,0.00023287,4]
[346011051,1734623438522,-500.0,0.00023287,4]
[346011052,1734623438532,-500.0,0.00023287,4]
[346011053,1734623438542,-500.0,0.00023287,4]
[346011054,1734623438552,-522.98,0.00023287,4]
[346011055,1734623438565,-500.0,0.00023287,4]
[346011056,1734623438575,-500.0,0.00023287,4]
[346011057,1734623438584,-593.22,0.00023287,4]
[346011058,1734623438594,-754.73,0.00023287,4]
[346011059,1734623438605,-500.0,0.00023287,4]
[346011060,1734623438615,-500.0,0.00023287,4]
[346011061,1734623438627,-783.85,0.00023287,4]
[346011062,1734623438638,-843.2,0.00023287,4]
[346011063,1734623438650,-998.34,0.00023287,4]
[346011064,1734623438660,-500.0,0.00023287,4]
[346011065,1734623438670,-1465.39,0.00023287,4]
[346011066,1734623438680,-676.41,0.00023287,4]
[346011067,1734623438690,-500.0,0.00023287,4]
[346011068,1734623438700,-500.0,0.00023287,4]
[346011069,1734623438710,-506.74,0.00023287,4]
[346011070,1734623438719,-1117.63,0.00023287,4]
[346011071,1734623438729,-1309.44,0.00023287,4]
[346011072,1734623438738,-596.538058,0.00023287,4]
[346011073,1734623438748,-1745.38,0.00023287,4]
[346011074,1734623438758,-500.0,0.00023287,4]
[346011075,1734623438767,-511.98035261,0.00023287,4]
[346011076,1734623438777,-500.0,0.00023287,4]
[346011077,1734623438787,-500.0,0.00023287,4]
[346011078,1734623438797,-500.0,0.00023287,4]
[346011079,1734623438806,-500.0,0.00023287,4]
[346011080,1734623438816,-500.0,0.00023287,4]
[346011081,1734623438825,-500.0,0.00023287,4]
[346011082,1734623438835,-500.0,0.00023287,4]
[346011083,1734623438845,-500.0,0.00023356,2]
[346011084,1734623438854,-250.0,0.00023358,2]
[346011085,1734623438863,-391.27731319,0.0002344,2]
[346011086,1734623438873,-288.04866537,0.00023466,2]
[346011087,1734623438883,-5481.69,0.00023473,2]
[346011088,1734623438894,-500.0,0.00023498,4]
[346011089,1734623438904,-500.0,0.00023498,4]
[346011090,1734623438913,-500.0,0.00023498,4]
[346011091,1734623438923,-500.0,0.00023498,4]
[346011092,1734623438932,-500.0,0.00023498,4]
[346011093,1734623438941,-500.0,0.00023498,4]
[346011094,1734623438951,-500.0,0.00023498,4]
[346011095,1734623438960,-500.0,0.00023498,4]
[346011096,1734623438970,-500.0,0.00023498,4]
[346011097,1734623438979,-999.0,0.00023499,2]
[346011098,1734623438989,-746.95,0.00023499,4]
[346011099,1734623438998,-746.95,0.00023499,4]
[346011100,1734623439008,-746.95,0.00023499,4]
[346011101,1734623439017,-746.95,0.00023499,4]
[346011102,1734623439027,-500.0,0.00023558,4]
[346011103,1734623439036,-500.0,0.00023558,4]
[346011104,1734623439046,-500.0,0.00023558,4]
[346011105,1734623439056,-895.5,0.00023558,4]
[346011106,1734623439065,-500.0,0.00023558,4]
[346011107,1734623439075,-500.0,0.00023559,4]
[346011108,1734623439085,-500.0,0.00023559,4]
[346011109,1734623439094,-500.0,0.00023559,4]
[346011110,1734623439104,-500.0,0.00023559,4]
[346011111,1734623439114,-500.0,0.00023559,4]
[346011112,1734623439123,-207.3639667,0.00023559,4]
[346011113,1734623439132,-500.0,0.00023559,4]
[346011114,1734623439143,-500.0,0.00023559,4]
[346011115,1734623439152,-500.0,0.00023559,4]
[346011116,1734623439162,-500.0,0.00023559,4]
[346011117,1734623439172,-500.0,0.00023559,4]
[346011118,1734623439181,-500.0,0.00023559,4]
[346011119,1734623439191,-500.0,0.00023559,4]
[346011120,1734623439200,-824.3,0.00023559,4]
[346011121,1734623439210,-500.0,0.00023559,4]
[346011122,1734623439219,-500.0,0.00023559,4]
[346011123,1734623439228,-500.0,0.00023559,4]
[346011124,1734623439238,-500.0,0.00023559,4]
[346011125,1734623439247,-500.0,0.00023559,4]
[346011126,1734623439257,-500.0,0.00023559,4]
[346011127,1734623439266,-618.46,0.00023559,4]
[346011128,1734623439276,-521.38,0.00023559,4]
[346011129,1734623439285,-500.0,0.00023559,4]
[346011130,1734623439295,-1093.24,0.00023559,4]
[346011131,1734623439305,-500.0,0.00023559,4]
[346011132,1734623439314,-500.0,0.00023559,4]
[346011133,1734623439455,-500.0,0.00023559,4]
[346011134,1734623439484,-500.0,0.00023559,4]
[346011135,1734623439494,-500.0,0.00023559,4]
[346011136,1734623439503,-500.0,0.00023559,4]
[346011137,1734623439512,-500.0,0.00023559,4]
[346011138,1734623439522,-717.63,0.00023559,4]
[346011139,1734623439532,-500.0,0.00023559,4]
[346011140,1734623439544,-1811.14,0.00023559,4]
[346011141,1734623439556,-2017.18,0.00023559,4]
[346011142,1734623439569,-500.0,0.00023559,4]
[346011143,1734623439578,-500.0,0.0002356,4]
[346011144,1734623439589,-500.0,0.00023561,4]
[346011145,1734623439599,-500.0,0.00023561,4]
[346011146,1734623439609,-500.0,0.00023561,4]
[346011147,1734623439620,-500.0,0.00023561,4]
[346011148,1734623439629,-500.0,0.00023561,4]
[346011149,1734623439638,-500.0,0.00023561,4]
[346011150,1734623439650,-635.96,0.00023561,4]
[346011151,1734623439659,-500.0,0.00023561,4]
[346011152,1734623439669,-500.0,0.00023561,4]
[346011153,1734623439678,-500.0,0.00023561,4]
[346011154,1734623439687,-522.98,0.00023561,4]
[346011155,1734623439697,-503.6743002,0.00023561,4]
[346011156,1734623439707,-500.0,0.00023561,4]
[346011157,1734623439716,-593.22,0.00023561,4]
[346011158,1734623439726,-754.73,0.00023561,4]
[346011159,1734623439736,-500.0,0.00023561,4]
[346011160,1734623439746,-500.0,0.00023561,4]
[346011161,1734623439755,-783.85,0.00023561,4]
[346011162,1734623439764,-843.2,0.00023561,4]
[346011163,1734623439774,-998.34,0.00023561,4]
[346011164,1734623439783,-500.0,0.00023561,4]
[346011165,1734623439793,-1465.39,0.00023561,4]
[346011166,1734623439802,-676.41,0.00023561,4]
[346011167,1734623439811,-500.0,0.00023561,4]
[346011168,1734623439821,-500.0,0.00023561,4]
[346011169,1734623439831,-506.74,0.00023561,4]
[346011170,1734623439841,-1117.63,0.00023561,4]
[346011171,1734623439850,-1309.44,0.00023561,4]
[346011172,1734623439859,-1745.38,0.00023561,4]
[346011173,1734623439868,-501.85267488,0.00023561,4]
[346011174,1734623439877,-500.0,0.00023561,4]
[346011175,1734623439886,-500.0,0.00023561,4]